[Event "Live Chess"]
[Site "Chess.com"]
[Date "2010.12.02"]
[Round "-"]
[White "ChupaMiCulo"]
[Black "hipposcottimus"]
[Result "0-1"]
[CurrentPosition "4r1k1/p4ppp/2R5/3p4/1P5b/5P2/PB2q2P/5KQ1 w - -"]
[Timezone "UTC"]
[ECO "D00"]
[ECOUrl "https://www.chess.com/openings/Queens-Pawn-Opening-1...d5-2.e3"]
[UTCDate "2010.12.02"]
[UTCTime "02:32:24"]
[WhiteElo "1643"]
[BlackElo "1708"]
[TimeControl "60"]
[Termination "hipposcottimus won by checkmate"]
[StartTime "02:32:24"]
[EndDate "2010.12.02"]
[EndTime "02:34:07"]
[Link "https://www.chess.com/game/live/73182161"]

1. d4 {[%clk 0:01:00]} 1... d5 {[%clk 0:01:00]} 2. e3 {[%clk 0:00:59.6]} 2... c6 {[%clk 0:00:59.7]} 3. Bd3 {[%clk 0:00:58.8]} 3... Nd7 {[%clk 0:00:59.4]} 4. Bf5 {[%clk 0:00:58.1]} 4... e5 {[%clk 0:00:59.1]} 5. Bd3 {[%clk 0:00:57.4]} 5... e4 {[%clk 0:00:57.9]} 6. Be2 {[%clk 0:00:56.6]} 6... Ngf6 {[%clk 0:00:57.6]} 7. f4 {[%clk 0:00:55.9]} 7... Be7 {[%clk 0:00:56.8]} 8. Nd2 {[%clk 0:00:55.2]} 8... O-O {[%clk 0:00:55.3]} 9. c4 {[%clk 0:00:54.4]} 9... Nb6 {[%clk 0:00:54.6]} 10. c5 {[%clk 0:00:53.6]} 10... Nbd7 {[%clk 0:00:54]} 11. b3 {[%clk 0:00:53]} 11... b6 {[%clk 0:00:53.6]} 12. Bb2 {[%clk 0:00:52.1]} 12... bxc5 {[%clk 0:00:53]} 13. dxc5 {[%clk 0:00:51.6]} 13... Nxc5 {[%clk 0:00:52.3]} 14. b4 {[%clk 0:00:51.2]} 14... Nd3+ {[%clk 0:00:49.9]} 15. Bxd3 {[%clk 0:00:50.1]} 15... exd3 {[%clk 0:00:49.7]} 16. Nb3 {[%clk 0:00:49.5]} 16... Ne4 {[%clk 0:00:49.4]} 17. Qxd3 {[%clk 0:00:48.5]} 17... Bh4+ {[%clk 0:00:45.5]} 18. Ke2 {[%clk 0:00:46.5]} 18... Nf2 {[%clk 0:00:42.4]} 19. Qb1 {[%clk 0:00:35.5]} 19... Bg4+ {[%clk 0:00:40.8]} 20. Nf3 {[%clk 0:00:34.7]} 20... Bxf3+ {[%clk 0:00:35.7]} 21. gxf3 {[%clk 0:00:33]} 21... Nxh1 {[%clk 0:00:31.3]} 22. Qxh1 {[%clk 0:00:31.5]} 22... Re8 {[%clk 0:00:30.6]} 23. Rd1 {[%clk 0:00:29.6]} 23... Qf6 {[%clk 0:00:30.2]} 24. Nd4 {[%clk 0:00:28.3]} 24... Qxf4 {[%clk 0:00:28.4]} 25. Rd3 {[%clk 0:00:25.9]} 25... Qf6 {[%clk 0:00:19.6]} 26. Rc3 {[%clk 0:00:23.3]} 26... Qh6 {[%clk 0:00:19.2]} 27. Nxc6 {[%clk 0:00:22.4]} 27... Rac8 {[%clk 0:00:17.6]} 28. Qg1 {[%clk 0:00:20.7]} 28... Rxc6 {[%clk 0:00:16]} 29. Rxc6 {[%clk 0:00:19.8]} 29... Qxe3+ {[%clk 0:00:15.2]} 30. Kf1 {[%clk 0:00:18]} 30... Qe2# {[%clk 0:00:14.2]} 0-1

[Event "Live Chess"]
[Site "Chess.com"]
[Date "2010.12.02"]
[Round "-"]
[White "TyAndGiedrius"]
[Black "hipposcottimus"]
[Result "1-0"]
[CurrentPosition "7k/5NR1/2p4p/1p3N2/r5P1/7P/P4PK1/8 b - -"]
[Timezone "UTC"]
[ECO "C58"]
[ECOUrl "https://www.chess.com/openings/Italian-Game-Knight-Attack-Polerio-Bishop-Check-Line-6...Bd7"]
[UTCDate "2010.12.02"]
[UTCTime "02:27:43"]
[WhiteElo "1746"]
[BlackElo "1701"]
[TimeControl "60"]
[Termination "TyAndGiedrius won by checkmate"]
[StartTime "02:27:43"]
[EndDate "2010.12.02"]
[EndTime "02:29:50"]
[Link "https://www.chess.com/game/live/73181175"]

1. e4 {[%clk 0:01:00]} 1... e5 {[%clk 0:01:00]} 2. Nf3 {[%clk 0:00:59.2]} 2... Nc6 {[%clk 0:00:59.7]} 3. Bc4 {[%clk 0:00:58.3]} 3... Nf6 {[%clk 0:00:59.3]} 4. Ng5 {[%clk 0:00:57.5]} 4... d5 {[%clk 0:00:58.7]} 5. exd5 {[%clk 0:00:56.6]} 5... Na5 {[%clk 0:00:58.4]} 6. Bb5+ {[%clk 0:00:55.8]} 6... Bd7 {[%clk 0:00:56.9]} 7. Bxd7+ {[%clk 0:00:54]} 7... Nxd7 {[%clk 0:00:56.6]} 8. d4 {[%clk 0:00:51.5]} 8... Be7 {[%clk 0:00:55.9]} 9. Nf3 {[%clk 0:00:47.1]} 9... f5 {[%clk 0:00:53.7]} 10. dxe5 {[%clk 0:00:45.9]} 10... O-O {[%clk 0:00:53]} 11. O-O {[%clk 0:00:44.5]} 11... c6 {[%clk 0:00:50.1]} 12. d6 {[%clk 0:00:43.1]} 12... Bh4 {[%clk 0:00:47.7]} 13. e6 {[%clk 0:00:40.7]} 13... Rf6 {[%clk 0:00:29]} 14. exd7 {[%clk 0:00:36.5]} 14... Qxd7 {[%clk 0:00:28.2]} 15. Nxh4 {[%clk 0:00:35.5]} 15... Rxd6 {[%clk 0:00:26.4]} 16. Qf3 {[%clk 0:00:33.9]} 16... Nc4 {[%clk 0:00:25.6]} 17. Nc3 {[%clk 0:00:32.2]} 17... Nd2 {[%clk 0:00:21.2]} 18. Bxd2 {[%clk 0:00:30.6]} 18... Rxd2 {[%clk 0:00:20.8]} 19. Qxf5 {[%clk 0:00:29.6]} 19... Rd8 {[%clk 0:00:20.1]} 20. Qxd7 {[%clk 0:00:26.6]} 20... R8xd7 {[%clk 0:00:19.8]} 21. Rad1 {[%clk 0:00:25.6]} 21... b5 {[%clk 0:00:15.4]} 22. Rxd2 {[%clk 0:00:23.6]} 22... Rxd2 {[%clk 0:00:15.1]} 23. Rd1 {[%clk 0:00:21.7]} 23... Rxc2 {[%clk 0:00:14.4]} 24. Rd7 {[%clk 0:00:20.2]} 24... Kf8 {[%clk 0:00:12.7]} 25. Rxa7 {[%clk 0:00:17.3]} 25... h6 {[%clk 0:00:10.3]} 26. Nf5 {[%clk 0:00:16.4]} 26... Kg8 {[%clk 0:00:09.6]} 27. h3 {[%clk 0:00:15.1]} 27... Kh7 {[%clk 0:00:08.3]} 28. Rxg7+ {[%clk 0:00:13.7]} 28... Kh8 {[%clk 0:00:06.6]} 29. g4 {[%clk 0:00:12.9]} 29... Rxb2 {[%clk 0:00:05.3]} 30. Ne4 {[%clk 0:00:12.2]} 30... Rb1+ {[%clk 0:00:04.3]} 31. Kg2 {[%clk 0:00:10.6]} 31... Rb4 {[%clk 0:00:03]} 32. Ned6 {[%clk 0:00:10]} 32... Ra4 {[%clk 0:00:01.3]} 33. Nf7# {[%clk 0:00:08.7]} 1-0

[Event "Live Chess"]
[Site "Chess.com"]
[Date "2010.12.02"]
[Round "-"]
[White "Akkenth"]
[Black "hipposcottimus"]
[Result "0-1"]
[CurrentPosition "8/pp6/2p3pp/5k2/1P1PRP2/P4K2/7P/8 w - -"]
[Timezone "UTC"]
[ECO "D00"]
[ECOUrl "https://www.chess.com/openings/Queens-Pawn-Opening-Chigorin-Variation-2...c6"]
[UTCDate "2010.12.02"]
[UTCTime "02:24:49"]
[WhiteElo "1406"]
[BlackElo "1708"]
[TimeControl "60"]
[Termination "hipposcottimus won on time"]
[StartTime "02:24:49"]
[EndDate "2010.12.02"]
[EndTime "02:27:04"]
[Link "https://www.chess.com/game/live/73180590"]

1. d4 {[%clk 0:01:00]} 1... d5 {[%clk 0:01:00]} 2. Nc3 {[%clk 0:00:59.6]} 2... c6 {[%clk 0:00:59.7]} 3. a3 {[%clk 0:00:59.1]} 3... e6 {[%clk 0:00:59.1]} 4. Bf4 {[%clk 0:00:58.7]} 4... f5 {[%clk 0:00:58.5]} 5. Nf3 {[%clk 0:00:58]} 5... Bd6 {[%clk 0:00:56]} 6. Bxd6 {[%clk 0:00:56]} 6... Qxd6 {[%clk 0:00:55.7]} 7. b4 {[%clk 0:00:55.6]} 7... Nf6 {[%clk 0:00:54.3]} 8. e3 {[%clk 0:00:52.7]} 8... Ne4 {[%clk 0:00:54]} 9. Nxe4 {[%clk 0:00:51.7]} 9... fxe4 {[%clk 0:00:53]} 10. Ng5 {[%clk 0:00:50.7]} 10... O-O {[%clk 0:00:52.6]} 11. Qh5 {[%clk 0:00:46.2]} 11... h6 {[%clk 0:00:44.5]} 12. Nh3 {[%clk 0:00:41.7]} 12... Nd7 {[%clk 0:00:44]} 13. Nf4 {[%clk 0:00:40.3]} 13... Nf6 {[%clk 0:00:43.7]} 14. Qe2 {[%clk 0:00:37.3]} 14... e5 {[%clk 0:00:40.2]} 15. Ng6 {[%clk 0:00:31.1]} 15... exd4 {[%clk 0:00:36.4]} 16. Nxf8 {[%clk 0:00:29.6]} 16... d3 {[%clk 0:00:33.6]} 17. cxd3 {[%clk 0:00:27.4]} 17... exd3 {[%clk 0:00:32.6]} 18. Qxd3 {[%clk 0:00:27]} 18... Qxf8 {[%clk 0:00:31.6]} 19. Be2 {[%clk 0:00:24.7]} 19... Ne4 {[%clk 0:00:31.3]} 20. f3 {[%clk 0:00:22.6]} 20... Bf5 {[%clk 0:00:29.4]} 21. fxe4 {[%clk 0:00:21]} 21... Bxe4 {[%clk 0:00:29.1]} 22. Qd2 {[%clk 0:00:20.4]} 22... Qf7 {[%clk 0:00:26.1]} 23. Rf1 {[%clk 0:00:19.7]} 23... Qg6 {[%clk 0:00:24.3]} 24. Bf3 {[%clk 0:00:17.8]} 24... Bf5 {[%clk 0:00:22.2]} 25. Ke2 {[%clk 0:00:13.8]} 25... Rf8 {[%clk 0:00:21.8]} 26. Rae1 {[%clk 0:00:12.6]} 26... d4 {[%clk 0:00:19]} 27. exd4 {[%clk 0:00:09.3]} 27... Re8+ {[%clk 0:00:17.2]} 28. Kd1 {[%clk 0:00:07.8]} 28... Rxe1+ {[%clk 0:00:14]} 29. Rxe1 {[%clk 0:00:07.4]} 29... Bg4 {[%clk 0:00:13.2]} 30. Re2 {[%clk 0:00:06.8]} 30... Bxf3 {[%clk 0:00:12]} 31. gxf3 {[%clk 0:00:05.8]} 31... Qg1+ {[%clk 0:00:11.6]} 32. Re1 {[%clk 0:00:03.9]} 32... Qg6 {[%clk 0:00:10.1]} 33. Qe2 {[%clk 0:00:03.4]} 33... Qf7 {[%clk 0:00:09.4]} 34. Qe8+ {[%clk 0:00:02]} 34... Qxe8 {[%clk 0:00:08.7]} 35. Rxe8+ {[%clk 0:00:01.7]} 35... Kf7 {[%clk 0:00:08.4]} 36. Re4 {[%clk 0:00:01.3]} 36... Kf6 {[%clk 0:00:07.7]} 37. f4 {[%clk 0:00:01]} 37... Kg6 {[%clk 0:00:07.2]} 38. Ke2 {[%clk 0:00:00.6]} 38... Kf5 {[%clk 0:00:06.2]} 39. Kf3 {[%clk 0:00:00.2]} 39... g6 {[%clk 0:00:05.2]} 0-1

[Event "Live Chess"]
[Site "Chess.com"]
[Date "2010.12.02"]
[Round "-"]
[White "zulfikar"]
[Black "hipposcottimus"]
[Result "0-1"]
[CurrentPosition "r4qk1/pbn3pp/6r1/1pp1R3/2P5/1PN5/1P2QP1P/5R1K w - -"]
[Timezone "UTC"]
[ECO "C55"]
[ECOUrl "https://www.chess.com/openings/Italian-Game-Two-Knights-Modern-Bishops-Opening-4...d5-5.exd5-Nxd5"]
[UTCDate "2010.12.02"]
[UTCTime "02:13:46"]
[WhiteElo "1620"]
[BlackElo "1712"]
[TimeControl "60"]
[Termination "hipposcottimus won by resignation"]
[StartTime "02:13:46"]
[EndDate "2010.12.02"]
[EndTime "02:15:22"]
[Link "https://www.chess.com/game/live/73178173"]

1. e4 {[%clk 0:01:00]} 1... e5 {[%clk 0:01:00]} 2. Nf3 {[%clk 0:00:58.4]} 2... Nc6 {[%clk 0:00:59.7]} 3. Bc4 {[%clk 0:00:57.3]} 3... Nf6 {[%clk 0:00:59.4]} 4. d3 {[%clk 0:00:56.4]} 4... d5 {[%clk 0:00:58.8]} 5. exd5 {[%clk 0:00:53.6]} 5... Nxd5 {[%clk 0:00:58.4]} 6. Bg5 {[%clk 0:00:52.7]} 6... f6 {[%clk 0:00:56.3]} 7. Bh4 {[%clk 0:00:50.7]} 7... Na5 {[%clk 0:00:54.4]} 8. Bb5+ {[%clk 0:00:46.1]} 8... c6 {[%clk 0:00:53.2]} 9. Ba4 {[%clk 0:00:44.4]} 9... b5 {[%clk 0:00:51.8]} 10. Bb3 {[%clk 0:00:43.5]} 10... Nxb3 {[%clk 0:00:51.1]} 11. axb3 {[%clk 0:00:42.7]} 11... Bb7 {[%clk 0:00:50.8]} 12. O-O {[%clk 0:00:40.8]} 12... Be7 {[%clk 0:00:50.4]} 13. c4 {[%clk 0:00:38.6]} 13... Nc7 {[%clk 0:00:47.2]} 14. d4 {[%clk 0:00:36.5]} 14... O-O {[%clk 0:00:43.2]} 15. dxe5 {[%clk 0:00:35.1]} 15... fxe5 {[%clk 0:00:42.9]} 16. Nxe5 {[%clk 0:00:34.1]} 16... Bxh4 {[%clk 0:00:40.7]} 17. Qg4 {[%clk 0:00:29.6]} 17... Bf6 {[%clk 0:00:37.8]} 18. Nd7 {[%clk 0:00:25.4]} 18... Rf7 {[%clk 0:00:32.7]} 19. Nxf6+ {[%clk 0:00:21.8]} 19... Rxf6 {[%clk 0:00:30.7]} 20. Nc3 {[%clk 0:00:20.8]} 20... Qf8 {[%clk 0:00:30.2]} 21. Rae1 {[%clk 0:00:18.7]} 21... c5 {[%clk 0:00:29.5]} 22. Re5 {[%clk 0:00:17.1]} 22... Rg6 {[%clk 0:00:25.8]} 23. Qe2 {[%clk 0:00:13.9]} 23... Rxg2+ {[%clk 0:00:24.6]} 24. Kh1 {[%clk 0:00:12.5]} 24... Rg6+ {[%clk 0:00:24.2]} 0-1

[Event "Live Chess"]
[Site "Chess.com"]
[Date "2010.12.02"]
[Round "-"]
[White "hipposcottimus"]
[Black "Froz1946"]
[Result "0-1"]
[CurrentPosition "8/6b1/p2B2pk/2Q4n/K1Ppp3/N4q2/P6P/8 w - -"]
[Timezone "UTC"]
[ECO "B30"]
[ECOUrl "https://www.chess.com/openings/Sicilian-Defense-Old-Sicilian-Variation-3.c4-g6"]
[UTCDate "2010.12.02"]
[UTCTime "02:10:52"]
[WhiteElo "1706"]
[BlackElo "1821"]
[TimeControl "60"]
[Termination "Froz1946 won on time"]
[StartTime "02:10:52"]
[EndDate "2010.12.02"]
[EndTime "02:13:12"]
[Link "https://www.chess.com/game/live/73177592"]

1. e4 {[%clk 0:01:00]} 1... c5 {[%clk 0:01:00]} 2. Nf3 {[%clk 0:00:57.8]} 2... Nc6 {[%clk 0:01:00]} 3. c4 {[%clk 0:00:57.2]} 3... g6 {[%clk 0:00:59.4]} 4. Nc3 {[%clk 0:00:56.9]} 4... Bg7 {[%clk 0:00:58.8]} 5. d3 {[%clk 0:00:56.6]} 5... d6 {[%clk 0:00:58.3]} 6. Bd2 {[%clk 0:00:55.6]} 6... Nf6 {[%clk 0:00:57.9]} 7. Be2 {[%clk 0:00:52.6]} 7... O-O {[%clk 0:00:57.5]} 8. O-O {[%clk 0:00:52.3]} 8... Bg4 {[%clk 0:00:56.3]} 9. Ng5 {[%clk 0:00:48.4]} 9... Bxe2 {[%clk 0:00:55]} 10. Qxe2 {[%clk 0:00:48.1]} 10... Nd4 {[%clk 0:00:54]} 11. Qe3 {[%clk 0:00:46.7]} 11... Nc2 {[%clk 0:00:52.4]} 12. Qh3 {[%clk 0:00:44.6]} 12... h6 {[%clk 0:00:48.9]} 13. Rac1 {[%clk 0:00:42.6]} 13... hxg5 {[%clk 0:00:43.9]} 14. Rxc2 {[%clk 0:00:41.5]} 14... g4 {[%clk 0:00:41.9]} 15. Qg3 {[%clk 0:00:37]} 15... e6 {[%clk 0:00:41.3]} 16. Qe3 {[%clk 0:00:35.3]} 16... d5 {[%clk 0:00:38.2]} 17. Qe2 {[%clk 0:00:34.3]} 17... d4 {[%clk 0:00:37.3]} 18. Nb5 {[%clk 0:00:31.4]} 18... a6 {[%clk 0:00:36]} 19. Na3 {[%clk 0:00:30.5]} 19... b6 {[%clk 0:00:34.5]} 20. b4 {[%clk 0:00:27.9]} 20... e5 {[%clk 0:00:32.7]} 21. bxc5 {[%clk 0:00:26.7]} 21... bxc5 {[%clk 0:00:32.1]} 22. Rb2 {[%clk 0:00:25.4]} 22... Rb8 {[%clk 0:00:31]} 23. Bc1 {[%clk 0:00:24.4]} 23... Rxb2 {[%clk 0:00:29.3]} 24. Bxb2 {[%clk 0:00:23.7]} 24... Qd7 {[%clk 0:00:28.4]} 25. Bc1 {[%clk 0:00:22.9]} 25... Nh5 {[%clk 0:00:26.2]} 26. Bg5 {[%clk 0:00:21.8]} 26... f5 {[%clk 0:00:24.8]} 27. f3 {[%clk 0:00:19.4]} 27... gxf3 {[%clk 0:00:22.5]} 28. Qxf3 {[%clk 0:00:18.1]} 28... fxe4 {[%clk 0:00:21.3]} 29. Qxe4 {[%clk 0:00:14.1]} 29... Rxf1+ {[%clk 0:00:20]} 30. Kxf1 {[%clk 0:00:13.8]} 30... Qf7+ {[%clk 0:00:18]} 31. Kg1 {[%clk 0:00:13.4]} 31... Qf5 {[%clk 0:00:17]} 32. Qd5+ {[%clk 0:00:12.2]} 32... Kh7 {[%clk 0:00:15.8]} 33. Be7 {[%clk 0:00:10.3]} 33... Qxd3 {[%clk 0:00:10.2]} 34. Qxc5 {[%clk 0:00:07.6]} 34... Qe3+ {[%clk 0:00:08]} 35. Kf1 {[%clk 0:00:05.3]} 35... Qd3+ {[%clk 0:00:06.6]} 36. Ke1 {[%clk 0:00:04.2]} 36... Qe3+ {[%clk 0:00:06.1]} 37. Kd1 {[%clk 0:00:03.5]} 37... Qg1+ {[%clk 0:00:04.5]} 38. Kc2 {[%clk 0:00:02.5]} 38... Qxg2+ {[%clk 0:00:03.9]} 39. Kb3 {[%clk 0:00:01.8]} 39... Qf3+ {[%clk 0:00:02.3]} 40. Ka4 {[%clk 0:00:01.3]} 40... Kh6 {[%clk 0:00:01.2]} 41. Bd6 {[%clk 0:00:00.2]} 41... e4 {[%clk 0:00:00.5]} 0-1

[Event "Live Chess"]
[Site "Chess.com"]
[Date "2010.12.02"]
[Round "-"]
[White "Froz1946"]
[Black "hipposcottimus"]
[Result "1-0"]
[CurrentPosition "5r1k/p3R1Qp/1p3p2/2p5/2P2P2/2B2P2/PP4KP/3r4 b - -"]
[Timezone "UTC"]
[ECO "D00"]
[ECOUrl "https://www.chess.com/openings/Queens-Pawn-Opening-1...d5-2.e3"]
[UTCDate "2010.12.02"]
[UTCTime "02:09:15"]
[WhiteElo "1815"]
[BlackElo "1712"]
[TimeControl "60"]
[Termination "Froz1946 won by checkmate"]
[StartTime "02:09:15"]
[EndDate "2010.12.02"]
[EndTime "02:10:50"]
[Link "https://www.chess.com/game/live/73177235"]

1. d4 {[%clk 0:01:00]} 1... d5 {[%clk 0:01:00]} 2. e3 {[%clk 0:01:00]} 2... c6 {[%clk 0:00:59.6]} 3. Bd3 {[%clk 0:00:59.3]} 3... Nd7 {[%clk 0:00:59.3]} 4. f4 {[%clk 0:00:58.6]} 4... f6 {[%clk 0:00:58.8]} 5. Nf3 {[%clk 0:00:57.9]} 5... e6 {[%clk 0:00:58.5]} 6. O-O {[%clk 0:00:56.5]} 6... Be7 {[%clk 0:00:56.1]} 7. c3 {[%clk 0:00:56]} 7... Nh6 {[%clk 0:00:55.5]} 8. Nbd2 {[%clk 0:00:55.4]} 8... Nf5 {[%clk 0:00:55.2]} 9. e4 {[%clk 0:00:54.8]} 9... dxe4 {[%clk 0:00:53.5]} 10. Nxe4 {[%clk 0:00:52.7]} 10... Nd6 {[%clk 0:00:53.3]} 11. Qe2 {[%clk 0:00:49.3]} 11... O-O {[%clk 0:00:51.6]} 12. Nxd6 {[%clk 0:00:47.4]} 12... Bxd6 {[%clk 0:00:51.2]} 13. Qxe6+ {[%clk 0:00:46.6]} 13... Kh8 {[%clk 0:00:49.4]} 14. Qxd6 {[%clk 0:00:45.9]} 14... Qe8 {[%clk 0:00:45.2]} 15. Bd2 {[%clk 0:00:44.2]} 15... Nb6 {[%clk 0:00:44.4]} 16. Rfe1 {[%clk 0:00:42]} 16... Bg4 {[%clk 0:00:43.7]} 17. Rxe8 {[%clk 0:00:39.5]} 17... Rfxe8 {[%clk 0:00:43.5]} 18. Qb4 {[%clk 0:00:36.1]} 18... Rf8 {[%clk 0:00:43.2]} 19. Re1 {[%clk 0:00:33.9]} 19... Nd5 {[%clk 0:00:42.8]} 20. Qb3 {[%clk 0:00:31.3]} 20... Bxf3 {[%clk 0:00:41.6]} 21. gxf3 {[%clk 0:00:29.8]} 21... Rad8 {[%clk 0:00:41.3]} 22. Bc4 {[%clk 0:00:28.4]} 22... b6 {[%clk 0:00:41]} 23. Bxd5 {[%clk 0:00:27.7]} 23... Rxd5 {[%clk 0:00:39.2]} 24. c4 {[%clk 0:00:26.8]} 24... Rxd4 {[%clk 0:00:37.8]} 25. Bc3 {[%clk 0:00:26.1]} 25... Rd3 {[%clk 0:00:36]} 26. Re7 {[%clk 0:00:22.5]} 26... c5 {[%clk 0:00:35.6]} 27. Qc2 {[%clk 0:00:20.5]} 27... Rdd8 {[%clk 0:00:33.8]} 28. Qf5 {[%clk 0:00:18.1]} 28... Rd1+ {[%clk 0:00:31.3]} 29. Kg2 {[%clk 0:00:16.8]} 29... Rc1 {[%clk 0:00:29.4]} 30. Qg4 {[%clk 0:00:15.6]} 30... Rd1 {[%clk 0:00:26.4]} 31. Qxg7# {[%clk 0:00:14.1]} 1-0

[Event "Live Chess"]
[Site "Chess.com"]
[Date "2010.12.02"]
[Round "-"]
[White "hipposcottimus"]
[Black "Froz1946"]
[Result "1-0"]
[CurrentPosition "1r1r2k1/7p/3p4/p1p5/NpPbPq2/1P1R4/5p1P/3R1K2 b - -"]
[Timezone "UTC"]
[ECO "B20"]
[ECOUrl "https://www.chess.com/openings/Sicilian-Defense"]
[UTCDate "2010.12.02"]
[UTCTime "02:06:52"]
[WhiteElo "1718"]
[BlackElo "1809"]
[TimeControl "60"]
[Termination "hipposcottimus won on time"]
[StartTime "02:06:52"]
[EndDate "2010.12.02"]
[EndTime "02:09:05"]
[Link "https://www.chess.com/game/live/73176749"]

1. e4 {[%clk 0:01:00]} 1... c5 {[%clk 0:01:00]} 2. Bb5 {[%clk 0:00:57.9]} 2... a6 {[%clk 0:00:58]} 3. Be2 {[%clk 0:00:57.6]} 3... Nf6 {[%clk 0:00:56]} 4. Nf3 {[%clk 0:00:57.3]} 4... Nxe4 {[%clk 0:00:54.7]} 5. d3 {[%clk 0:00:57]} 5... Nf6 {[%clk 0:00:53.6]} 6. c4 {[%clk 0:00:56.8]} 6... g6 {[%clk 0:00:52.8]} 7. Nc3 {[%clk 0:00:56.5]} 7... Bg7 {[%clk 0:00:52.1]} 8. Bd2 {[%clk 0:00:56]} 8... O-O {[%clk 0:00:51.2]} 9. b3 {[%clk 0:00:55.2]} 9... d6 {[%clk 0:00:50.5]} 10. Rc1 {[%clk 0:00:54.7]} 10... Nc6 {[%clk 0:00:49.7]} 11. O-O {[%clk 0:00:54.4]} 11... Bg4 {[%clk 0:00:48.7]} 12. Ne1 {[%clk 0:00:51.6]} 12... Bxe2 {[%clk 0:00:46.8]} 13. Qxe2 {[%clk 0:00:51.4]} 13... Nd4 {[%clk 0:00:45.9]} 14. Qd1 {[%clk 0:00:49.1]} 14... b5 {[%clk 0:00:45.2]} 15. Nf3 {[%clk 0:00:46.7]} 15... Nxf3+ {[%clk 0:00:41.3]} 16. Qxf3 {[%clk 0:00:46.4]} 16... b4 {[%clk 0:00:41]} 17. Na4 {[%clk 0:00:44.6]} 17... Nd7 {[%clk 0:00:38.1]} 18. Nb2 {[%clk 0:00:44.2]} 18... Ne5 {[%clk 0:00:36.9]} 19. Qe2 {[%clk 0:00:42]} 19... f5 {[%clk 0:00:35.4]} 20. Nd1 {[%clk 0:00:40.6]} 20... e6 {[%clk 0:00:33.2]} 21. Ne3 {[%clk 0:00:39.7]} 21... Qf6 {[%clk 0:00:31.2]} 22. f3 {[%clk 0:00:37.6]} 22... f4 {[%clk 0:00:30.5]} 23. Nd1 {[%clk 0:00:36.1]} 23... Qf5 {[%clk 0:00:29.8]} 24. Nf2 {[%clk 0:00:34.1]} 24... g5 {[%clk 0:00:27.8]} 25. Ng4 {[%clk 0:00:33.6]} 25... Qxd3 {[%clk 0:00:23.9]} 26. Nxe5 {[%clk 0:00:31.6]} 26... Qxe2 {[%clk 0:00:22.6]} 27. Rfe1 {[%clk 0:00:30.4]} 27... Qxd2 {[%clk 0:00:21.5]} 28. Nd7 {[%clk 0:00:29]} 28... Rfd8 {[%clk 0:00:17.1]} 29. Rcd1 {[%clk 0:00:28.6]} 29... Bd4+ {[%clk 0:00:15.2]} 30. Kh1 {[%clk 0:00:26.3]} 30... Qxa2 {[%clk 0:00:14.7]} 31. Nb6 {[%clk 0:00:22.7]} 31... Rab8 {[%clk 0:00:13.2]} 32. Na4 {[%clk 0:00:22.2]} 32... a5 {[%clk 0:00:11.5]} 33. Rd3 {[%clk 0:00:19.9]} 33... e5 {[%clk 0:00:08]} 34. Red1 {[%clk 0:00:19.5]} 34... e4 {[%clk 0:00:07.2]} 35. fxe4 {[%clk 0:00:18.9]} 35... f3 {[%clk 0:00:06.1]} 36. gxf3 {[%clk 0:00:17.5]} 36... Qc2 {[%clk 0:00:04.7]} 37. R1d2 {[%clk 0:00:14.9]} 37... Qc1+ {[%clk 0:00:03.6]} 38. Rd1 {[%clk 0:00:14.4]} 38... Qf4 {[%clk 0:00:03.2]} 39. Kg2 {[%clk 0:00:12]} 39... g4 {[%clk 0:00:01.9]} 40. Kf1 {[%clk 0:00:11.4]} 40... gxf3 {[%clk 0:00:01.1]} 41. R3d2 {[%clk 0:00:09]} 41... f2 {[%clk 0:00:00.1]} 42. Rd3 {[%clk 0:00:08.3]} 1-0

[Event "Live Chess"]
[Site "Chess.com"]
[Date "2010.12.02"]
[Round "-"]
[White "hipposcottimus"]
[Black "AndrewArcilla"]
[Result "1-0"]
[CurrentPosition "8/p5p1/3k4/1R4p1/B7/1Pb1KP2/P2rR3/3N4 b - -"]
[Timezone "UTC"]
[ECO "B01"]
[ECOUrl "https://www.chess.com/openings/Scandinavian-Defense-Mieses-Kotrc-Variation-3.Nc3"]
[UTCDate "2010.12.02"]
[UTCTime "01:56:34"]
[WhiteElo "1706"]
[BlackElo "1714"]
[TimeControl "60"]
[Termination "hipposcottimus won on time"]
[StartTime "01:56:34"]
[EndDate "2010.12.02"]
[EndTime "01:58:51"]
[Link "https://www.chess.com/game/live/73174579"]

1. e4 {[%clk 0:01:00]} 1... d5 {[%clk 0:01:00]} 2. exd5 {[%clk 0:00:56.7]} 2... Qxd5 {[%clk 0:01:00]} 3. Nc3 {[%clk 0:00:56.3]} 3... Qe6+ {[%clk 0:00:58.2]} 4. Be2 {[%clk 0:00:55.6]} 4... Qg6 {[%clk 0:00:56.4]} 5. Bf3 {[%clk 0:00:54.4]} 5... Bf5 {[%clk 0:00:55.1]} 6. Nge2 {[%clk 0:00:53.9]} 6... Bxc2 {[%clk 0:00:53.8]} 7. Nf4 {[%clk 0:00:48.5]} 7... Bxd1 {[%clk 0:00:50.1]} 8. Nxg6 {[%clk 0:00:47.1]} 8... hxg6 {[%clk 0:00:46]} 9. Nxd1 {[%clk 0:00:46]} 9... Nc6 {[%clk 0:00:45.2]} 10. O-O {[%clk 0:00:45.7]} 10... Rd8 {[%clk 0:00:44]} 11. Re1 {[%clk 0:00:45.4]} 11... Rd4 {[%clk 0:00:41.6]} 12. b3 {[%clk 0:00:43.1]} 12... Rdh4 {[%clk 0:00:40]} 13. Bb2 {[%clk 0:00:40.8]} 13... Rxh2 {[%clk 0:00:39]} 14. Kf1 {[%clk 0:00:38.7]} 14... Rh1+ {[%clk 0:00:38.2]} 15. Ke2 {[%clk 0:00:38.3]} 15... e6 {[%clk 0:00:36.5]} 16. g3 {[%clk 0:00:36.8]} 16... Nf6 {[%clk 0:00:35.5]} 17. Bxh1 {[%clk 0:00:35.5]} 17... Ne4 {[%clk 0:00:32]} 18. Bxe4 {[%clk 0:00:33.3]} 18... Ne5 {[%clk 0:00:30]} 19. Bxb7 {[%clk 0:00:31.9]} 19... Ng4 {[%clk 0:00:28.2]} 20. f3 {[%clk 0:00:29.9]} 20... Rh2+ {[%clk 0:00:26.5]} 21. Kd3 {[%clk 0:00:28.4]} 21... Ne5+ {[%clk 0:00:24.8]} 22. Bxe5 {[%clk 0:00:26.8]} 22... f6 {[%clk 0:00:23.4]} 23. Bxc7 {[%clk 0:00:24.6]} 23... Bb4 {[%clk 0:00:21]} 24. Bf4 {[%clk 0:00:21.4]} 24... g5 {[%clk 0:00:19.3]} 25. Be3 {[%clk 0:00:20.6]} 25... f5 {[%clk 0:00:18.7]} 26. Re2 {[%clk 0:00:19.2]} 26... Rh1 {[%clk 0:00:17.3]} 27. Rc1 {[%clk 0:00:15.9]} 27... f4 {[%clk 0:00:16.4]} 28. Bf2 {[%clk 0:00:14.3]} 28... fxg3 {[%clk 0:00:15]} 29. Re1 {[%clk 0:00:13.8]} 29... Rh2 {[%clk 0:00:11.7]} 30. Bxg3 {[%clk 0:00:12.2]} 30... Rxd2+ {[%clk 0:00:10]} 31. Ke3 {[%clk 0:00:09.6]} 31... e5 {[%clk 0:00:07.5]} 32. Bc6+ {[%clk 0:00:07]} 32... Ke7 {[%clk 0:00:06.3]} 33. Bxe5 {[%clk 0:00:06.6]} 33... Ke6 {[%clk 0:00:05.4]} 34. Ba4 {[%clk 0:00:05]} 34... Kxe5 {[%clk 0:00:04.7]} 35. Rc5+ {[%clk 0:00:04.3]} 35... Kd6 {[%clk 0:00:02.5]} 36. Rb5 {[%clk 0:00:01.8]} 36... Bc3 {[%clk 0:00:00.8]} 37. Re2 {[%clk 0:00:00.7]} 1-0